Cogmind - Beta 13 @@@ ROGUE MODE // 2024.05.08 @ 00:19:48 Player: JP Result: Self-destructed Performance ------------- Evolutions (1) 500 Regions Visited (3) 600 Robots Destroyed (11) 55 Value Destroyed (266) 266 Prototype IDs (0) 0 Alien Tech Used (0) 0 Bonus (0) 0 TOTAL SCORE: 1421 Bonus ------- None Cogmind --------- Core Integrity 352/400 Matter 269/300 Energy 265/265 System Corruption 0% Temperature Cool (24) Movement Walking (120) Location -9/Materials Parts ------- > --- POWER (1) -------- Improved Ion Engine > --- PROPULSION (3) --- Aluminum Leg Aluminum Leg > --- UTILITY (3) ------ Small Storage Unit Sensor Array Signal Interpreter > --- WEAPON (2) ------- Beam Rifle Shotgun > --- INVENTORY (8) ---- Ion Engine Medium Storage Unit Sensor Array Medium Armor Plating EM Pulse Gun Medium Laser Improved Light Cannon Rocket Launcher Peak State ------------ > --- POWER ------------ Improved Ion Engine > --- PROPULSION ------- Aluminum Leg Aluminum Leg > --- UTILITY ---------- Small Storage Unit Sensor Array Signal Interpreter > --- WEAPON ----------- Beam Rifle Improved Light Cannon > --- INVENTORY -------- Ion Engine Medium Storage Unit Medium Armor Plating EM Pulse Gun Medium Laser Shotgun Rocket Launcher [Rating: 12] Favorites ----------- Power Ion Engine Engine Ion Engine Propulsion Aluminum Leg Leg Aluminum Leg Utility Small Storage Unit Device Sensor Array Storage Small Storage Unit Processor Signal Interpreter Weapon EM Pulse Gun Energy Gun EM Pulse Gun Ballistic Gun Shotgun Ballistic Cannon Improved Light Cannon Launcher Grenade Launcher Build | -11 -10 -10 -9 ------- Run | Yrd Mat Min Mat Slots Evolved 2 | . . . 2 Power . | . . . . Propulsion 1 | . . . 1 Utility 1 | . . . 1 Weapon . | . . . . Parts Attached 16 | 6 3 . 7 Power 2 | 1 . . 1 Engine 2 | 1 . . 1 Core . | . . . . Reactor . | . . . . Propulsion 2 | 2 . . . Treads . | . . . . Leg 2 | 2 . . . Wheel . | . . . . Hover . | . . . . Flight . | . . . . Utility 5 | 1 3 . 1 Device 1 | . 1 . . Storage 3 | 1 2 . . Processor 1 | . . . 1 Hackware . | . . . . Protection . | . . . . Artifact . | . . . . Weapon 7 | 2 . . 5 Energy Gun 4 | 2 . . 2 Energy Cannon . | . . . . Ballistic Gun 1 | . . . 1 Ballistic Cannon 1 | . . . 1 Launcher 1 | . . . 1 Special Weapon . | . . . . Impact Weapon . | . . . . Slashing Weapon . | . . . . Piercing Weapon . | . . . . Special Melee Weapon . | . . . . Unidentified Prototypes . | . . . . Parts Lost . | . . . . Power . | . . . . Propulsion . | . . . . Utility . | . . . . Weapon . | . . . . Highest Loss Streak . | . . . . To Critical Strikes . | . . . . Average Slot Usage (%) 93 | . 88 100 88 Engine 12 | . 14 14 11 Leg 25 | . 28 28 22 Device 10 | . 3 14 11 Storage 12 | . 14 14 11 Processor 4 | . . . 11 Energy Gun 25 | . 28 28 20 Naked Turns . | . . . . Heaviest Build 19 | 14 15 15 19 Greatest Support 20 | 20 20 20 20 Greatest Overweight (x) 1 | 1 . . . Average Overweight (x) . | . . . . Largest Inventory Capacity 10 | 8 10 8 8 Average Capacity 7 | 7 8 8 8 Most Carried 8 | 7 8 8 8 Average Carried 7 | 3 6 7 7 Final Capacity 8 | 8 8 8 8 Final Carried 8 | 2 7 8 8 Class Distribution -------------------- 100% | Mutant Dominant Class ---------------- Mutant | -10/Materials Mutant | -10/Mines Mutant | -9/Materials Resources | -11 -10 -10 -9 ----------- Run | Yrd Mat Min Mat Matter Collected 366 | 89 30 47 200 Remotely . | . . . . Salvage Created 320 | . . 23 297 Parts 28 | . . 6 22 Haulers Intercepted . | . . . . Recyclers Shooed 2 | . . . 2 Parts Field Recycled . | . . . . Retrieved Matter . | . . . . Parts Self-Destructed . | . . . . Prevented . | . . . . Kills | -11 -10 -10 -9 ------- Run | Yrd Mat Min Mat Combat Hostiles Destroyed 9 | . . . 9 Guns 5 | . . . 5 AOE 4 | . . . 4 Classes Destroyed 6 | . . 1 5 Builder 1 | . . 1 . Watcher 1 | . . . 1 Swarmer 4 | . . . 4 Grunt 2 | . . . 2 Duelist 1 | . . . 1 Sentry 2 | . . . 2 Best Kill Streak 8 | . . 1 8 Combat Bots Only 4 | . . . 4 Max Kills in Single Turn 3 | . . 1 3 Gunslinging . | . . . . Exploded 3 | . . . 3 Melee . | . . . . Uniques/NPCs Destroyed . | . . . . Combat | -11 -10 -10 -9 -------- Run | Yrd Mat Min Mat Hostile Shots Fired 29 | . . . 29 Missed 8 | . . . 8 Damage Taken 239 | . . . 239 Core 48 | . . . 48 Absorbed by Shields . | . . . . Core Remaining (%) 100 | 100 . 100 . Volleys Fired 21 | . . 1 20 Largest 2 | . . 2 2 Hottest 96 | . . 90 96 Shots Fired 40 | . . 2 38 Gun 38 | . . 2 36 Cannon . | . . . . Launcher 2 | . . . 2 Special . | . . . . Kinetic 5 | . . . 5 Thermal 19 | . . 1 18 Explosive 2 | . . . 2 Electromagnetic 14 | . . 1 13 Robot Hit Streak 7 | . . 2 7 Robot Miss Streak 5 | . . . 5 Penetration Max . | . . . . Secondary Targets . | . . . . Shots Hit Robots 24 | . . 2 22 Core Hits 18 | . . 1 17 Critical Kills . | . . . . Critical Parts Destroyed . | . . . . Critical Strikes 2 | . . . 2 Burn 2 | . . . 2 Melee Attacks . | . . . . Impact . | . . . . Slashing . | . . . . Piercing . | . . . . Sneak Attacks . | . . . . Combat Hostiles . | . . . . Follow-up Attacks . | . . . . Damage Inflicted 550 | . . 24 526 Guns 317 | . . 24 293 Cannons . | . . . . Explosions 225 | . . . 225 Melee . | . . . . Ramming 8 | . . . 8 Kinetic 64 | . . . 64 Thermal 153 | . . 12 141 Explosive 225 | . . . 225 Electromagnetic 100 | . . 12 88 Impact . | . . . . Slashing . | . . . . Piercing . | . . . . Highest Corruption . | . . . . Average Corruption . | . . . . Corruption Purged . | . . . . Corruption Blocked . | . . . . Overload Shots . | . . . . Overflow Damage 13 | . . . 13 Projectiles . | . . . . Explosions 13 | . . . 13 Melee . | . . . . Knockbacks . | . . . . Impact . | . . . . Kinetic . | . . . . Secondary . | . . . . Self-Inflicted Damage . | . . . . Shots . | . . . . Rammed . | . . . . Targets Rammed 1 | . . . 1 Kicked 1 | . . . 1 Crushed . | . . . . Highest Temperature 189 | . . 30 189 Average Temperature 56 | . . 18 58 Received Heat Transfer 66 | . . . 66 Siege Activations . | . . . . Robots Corrupted . | . . . . Combat Hostiles . | . . . . Parts Fried . | . . . . Impact Corruptions . | . . . . Robots Melted . | . . . . Combat Hostiles . | . . . . Parts Melted 1 | . . . 1 Heat Transferred 555 | . . 37 518 Parts Sabotaged . | . . . . Parts Stolen . | . . . . Parts Stripped . | . . . . Power Chain Reactions . | . . . . Alert | -11 -10 -10 -9 ------- Run | Yrd Mat Min Mat Peak Influence 313 | . . 5 313 Initial 1 | . . . 1 Average 37 | . . 2 99 Maximum Alert Level 1 | . . . 1 Low Security (%) 94 | 100 100 100 84 Level 1 5 | . . . 15 Level 2 . | . . . . Level 3 . | . . . . Level 4 . | . . . . Level 5 . | . . . . High Security . | . . . . Max Security . | . . . . Squads Dispatched 1 | . 1 . . Investigation . | . . . . Extermination . | . . . . Reinforcement 1 | . 1 . . Assault . | . . . . Garrison . | . . . . Intercept . | . . . . Searches Triggered . | . . . . Construction Impeded . | . . . . Haulers Reinforced . | . . . . Active Scanning Responses . | . . . . Cargo Convoy Interrupts . | . . . . Stealth | -11 -10 -10 -9 --------- Run | Yrd Mat Min Mat Distress Signals 2 | . . . 2 Communications Jammed . | . . . . Distress Signals . | . . . . Times Spotted 14 | . . . 14 Peak Tracking Total 6 | . . . 6 Tactical Retreats . | . . . . Traps | -11 -10 -10 -9 ------- Run | Yrd Mat Min Mat Traps Triggered . | . . . . Indirectly . | . . . . Trap Hack Attempts . | . . . . Triggered . | . . . . Disarmed . | . . . . Reprogrammed . | . . . . Reused . | . . . . Traps Extracted . | . . . . Installed . | . . . . Triggered . | . . . . Machines | -11 -10 -10 -9 ---------- Run | Yrd Mat Min Mat Machines Disabled . | . . . . Max in Single Turn . | . . . . Machines Repaired . | . . . . Machines Dismantled . | . . . . Machines Sabotaged . | . . . . Overloaded Fab Kills . | . . . . Hacking | -11 -10 -10 -9 --------- Run | Yrd Mat Min Mat Machines Accessed 3 | . 1 . 2 Terminals 3 | . 1 . 2 Fabricators . | . . . . Repair Stations . | . . . . Recycling Units . | . . . . Scanalyzers . | . . . . Garrison Access . | . . . . Total Hacks 15 | . 5 . 10 Successful 8 | . 3 . 5 Failed 7 | . 2 . 5 Catastrophic 1 | . . . 1 Database Lockouts . | . . . . Manual 3 | . . . 3 Terminals 15 | . 5 . 10 Fabricators . | . . . . Repair Stations . | . . . . Recycling Units . | . . . . Scanalyzers . | . . . . Garrison Access . | . . . . Terminal Hacks 8 | . 3 . 5 Record 4 | . 2 . 2 Branch Access Points 1 | . . . 1 Emergency Access Points 2 | . 1 . 1 Zone Layout 1 | . . . 1 Fabricator Hacks . | . . . . Repair Station Hacks . | . . . . Recycling Unit Hacks . | . . . . Scanalyzer . | . . . . Garrison Access Hacks . | . . . . Unauthorized Hacks . | . . . . Terminals . | . . . . Fabricators . | . . . . Repair Stations . | . . . . Recycling Units . | . . . . Scanalyzers . | . . . . Garrison Access . | . . . . Data Cores Recovered . | . . . . Used . | . . . . Hacking Detections 3 | . 1 . 2 Full Trace Events . | . . . . Feedback Events . | . . . . Feedback Blocked . | . . . . Robot Schematics Acquired . | . . . . Robots Built . | . . . . Authchips . | . . . . Time . | . . . . Total Robot Build Rating . | . . . . Part Schematics Acquired . | . . . . Parts Built . | . . . . Authchips . | . . . . Time . | . . . . Total Part Build Rating . | . . . . Parts Repaired . | . . . . Time . | . . . . Parts Recycled . | . . . . Recycled Matter . | . . . . Retrieved Matter . | . . . . Retrieved Components . | . . . . Parts Scanalyzed . | . . . . Part Schematics Acquired . | . . . . Parts Damaged . | . . . . Bothacking | -11 -10 -10 -9 ------------ Run | Yrd Mat Min Mat Used RIF Installer . | . . . . Robots Hacked . | . . . . Non-combat . | . . . . Combat . | . . . . Robot Hacks Applied . | . . . . Relay Couplers Released . | . . . . Fabnet Peak Effective % . | . . . . Robots Rewired . | . . . . Allies Hacked . | . . . . Hacks Repelled . | . . . . Allies | -11 -10 -10 -9 -------- Run | Yrd Mat Min Mat Total Allies . | . . . . Largest Group . | . . . . Highest-Rated Group . | . . . . Highest-Rated Ally . | . . . . Total Orders . | . . . . Ally Attacks . | . . . . Total Damage . | . . . . Kills . | . . . . Allies Corrupted . | . . . . Allies Melted . | . . . . Intel | -11 -10 -10 -9 ------- Run | Yrd Mat Min Mat Robot Analysis Total . | . . . . Derelict Logs Recovered 1 | . . 1 . Drone Launches . | . . . . Drone Recoveries . | . . . . Exploration | -11 -10 -10 -9 ------------- Run | Yrd Mat Min Mat Turns Passed 690 | 47 122 270 251 Spaces Moved 485 | 39 94 208 144 Core 21 | 21 . . . Treads . | . . . . Legs 464 | 18 94 208 144 Wheels . | . . . . Hover . | . . . . Flight . | . . . . Fastest Speed 50 | 50 120 120 120 Average Speed 117 | 87 120 120 120 Slowest Speed 120 | 120 120 120 120 Overloaded Moves . | . . . . Propulsion Burnouts . | . . . . Robots Hopped . | . . . . Cave-ins Triggered . | . . . . Exploration Rate (%) 31 | 4 31 74 16 Regions Visited 3 Branch Regions 1 Pre-discovered Areas 1 | . . 1 . Known Exits Taken . | . . . . Unknown Exits Taken 3 | 1 1 1 . Scrap Searched 1 | . . 1 . Spaces Dug . | . . . . Terrain Destroyed 15 | . . . 15 Melee . | . . . . Projectile . | . . . . AOE 15 | . . . 15 Terrain Rammed . | . . . . Walls Destroyed . | . . . . Machines Disabled . | . . . . Actions | -11 -10 -10 -9 --------- Run | Yrd Mat Min Mat Total 564 | 51 102 226 185 Wait 20 | . . 17 3 Move 482 | 38 93 207 144 Hop . | . . . . Pick Up 19 | 7 6 1 5 Fast Attach 1 | 1 . . . Attach 9 | 5 1 . 3 Detach . | . . . . Swap 6 | . 2 . 4 Drop 5 | . . . 5 Fire 21 | . . 1 20 Melee . | . . . . Ram . | . . . . Kick 1 | . . . 1 Crush . | . . . . Escape Stasis . | . . . . Rewire . | . . . . Trap . | . . . . Miscellaneous . | . . . . Route ------- -11/Scrapyard -10/Materials -10/Mines -9/Materials (discovered 3 exits: *Min x2 / Sto) History --------- Turn | Location | Event 4 | -11/Scrapyard | Discovered new exit (range 15) 48 | -11/Scrapyard | Entered Materials 154 | -10/Materials | Discovered new exit (range 10) 170 | -10/Materials | Entered Mines 241 | -10/Mines | Received a Rocket Launcher from a helpful Derelict 300 | -10/Mines | Build established: Mutant 367 | -10/Mines | A weapon hastily lodged in a ceiling crevice suddenly fell to the ground 427 | -10/Mines | Discovered new exit (range 12) 440 | -10/Mines | Entered Materials 440 | -9/Materials | Evolved 2 slots: Propulsion x1, Utility x1 526 | -9/Materials | Identified exit to Mines 526 | -9/Materials | Identified exit to Storage 691 | -9/Materials | Self-destructed Last Messages --------------- Lgt. Ion Engine melted. W-16 Scout destroyed. U-05 Engineer lays Concrete. U-05 Engineer builds a Wall. U-05 Engineer lays Concrete. U-05 Engineer builds a Wall. S-10 Pest destroyed. U-05 Engineer lays Concrete. U-05 Engineer builds a Wall. Acquired Sensor Array. U-05 Engineer lays Concrete. U-05 Engineer builds a Wall. U-05 Engineer lays Concrete. U-05 Engineer builds a Wall. U-05 Engineer lays Concrete. L-31 Rogue destroyed. U-05 Engineer lays Concrete. W-16 Scout sends out distress signal. G-34 Mercenary destroyed. Acquired 56 matter. Map ----- +----------------------------------------------------+ | # #?????????????????????????? | | ##+######### #?? #?????????????????????????? | | # ] #???#!#?? #????######???????????????? | | # #?### ####+#?#######? #???????????????? | | # """ #?# !*= ## #?# # !!! #???????????????? | | # R" #?# [ ## ###] # !!! #???????????????? | | # """ #?# = > !!! #???????????????? | | # #?# ##### % = # #???????????????? | | ########?# #???##[ # #???????????????? | | ?????????#######????## * #?######???????????????? | | ????????????????????# ! #??????????????????????? | | ????????????????????## #??????????????????????? | | ????????????????????# # # #??????????????????????? | | ????????????????????### ###??????????????????????? | | ??????????????????????#x#????????????????????????? | | ??????????????????????# #????????????????????????? | | ??????????????????????# #????????????????????????? | | ??????????????????????# #????????????????????????? | | ??????????????????????# #????????????????????????? | | ??????????????????????# #????????????????????????? | | ??????????????????????# #????????????????????????? | | ??????????????????????# #????????????????????????? | | ??????????????????????# #????????????????????????? | | ??????????????????????# #############????????????? | | ??????????????????????# !t #????????????? | | ??????????????????????# @ #????????????? | | ?????????????????"" /b=% + ??????????? | | ?????????????t k g##### = # ???????????? | | ?????????????# ???????# [%= #????????????? | | ????????????????????????# """ ##????????????? | | ????????????????????????# """ #?????????????? | | ????????????????????????# %""" #?????????????? | | ????????????????????????# * +?????????????? | | ???????????>????????????# ? #?????????????? | | ????????????????????????? ??? #?????????????? | | ????????????????????????? ???????????????????? | | ????????????????????????? = ???????????????????? | | ????????????????????????? ????????????????????? | | ????????????????????????? ????????????????????? | | ?????????????????????????###+????????????????????? | | ?????????????????????????????????????????????????? | | ?????????????????????????????????????????????????? | | ?????????????????????????????????????????????????? | | ?????????????????????????????????????????????????? | | ?????????????????????????????????????????????????? | | ?????????????????????????????????????????????????? | | ?????????????????????????????????????????????????? | | ?????????????????????????????????????????????????? | | ?????????????????????????????????????????????????? | | ?????????????????????????????????????????????????? | +----------------------------------------------------+ Best States ------------- Heat Dissipation 28 Energy Generation 12 Energy Capacity 265 Matter Stores 269 Matter Capacity 300 Sight Range 16 Robot Scan Range 14 Terrain Scan Density 10 Evasion (%) 55 Item Schematics ----------------- None Robot Schematics ------------------ None Fabricated ------------ Nothing Alien Tech Used ----------------- None Achievements -------------- None Challenges ------------ None Game ------ Seed TerrainLightningAmplifier Manual? 0 Play Time 00:13:12 Cumulative 5.9 hours Start 2024.05.07 @ 13:16:35 End 2024.05.08 @ 00:19:48 Sessions 3 Manual Loads 0 Difficulty Rogue Special Mode None Game No. 8 Rogue 8 Adventurer 0 Explorer 0 Win Type - Total 0 Types 0/0/0/0/0/0/0/0/0 Lore% 6 Gallery% 13 Achievement% 13 Wizard Run 0 Options --------- Layout 1 ASCII 0 Keyboard 0 Movement Mouse Keybinds 0 Fullscreen 2 Font 24/Smallcaps Map View 50x35 Zoom Use 0% Tactical HUD 0 Map Filters NONE Filters NONE Steam 1 RUN: c7675eaf-7df0-4e95-82c1-472ea62d4886